{"text_format":"3","workbook":"xlsx","n_sheets":2,"sheets":["Prosjektsporing","Installasjon"],"not_rendered":{"defined_names":6},"read":"whole","date_system":"1900"}

{"sheet":"Prosjektsporing","index":0,"n_rows":13,"n_cols":15,"rows_kept":13}
[null,"Prosjektsporing"]
[null,null,"Prosent over/under som skal flagges: ",{"v":0.25,"d":"25%"}]
[]
[null,"Prosjekt","Kategori","Tilordnet til","Beregnet\nStart","Beregnet \nAvslutning","Beregnet arbeid \n(i timer)","Beregnet varighet \n(i dager)","Faktisk \nStart","Faktisk\nAvslutning","Flagg-ikon for over/under faktisk arbeid (i timer)","Faktisk arbeid \n(i timer)","Flagg-ikon for over/under faktisk varighet (dager)","Faktisk varighet \n(i dager)","Notater"]
[null,"Prosjekt 1","Kategori 1","Ansatt 1",{"$f":"TODAY()-65","v":"2016-08-16"},{"$f":"TODAY()-5","v":"2016-10-15"},210,{"$f":"IF(COUNTA(Prosjektsporing!$E5,Prosjektsporing!$F5)<>2,\"\",DAYS360(Prosjektsporing!$E5,Prosjektsporing!$F5,FALSE))","v":59},{"$f":"TODAY()-65","v":"2016-08-16"},{"$f":"TODAY()","v":"2016-10-20"},{"$f":"IFERROR(IF(Prosjektsporing[Faktisk arbeid \n(i timer)]=0,\"\",IF(ABS((Prosjektsporing[[#This Row],[Faktisk arbeid \n(i timer)]]-Prosjektsporing[[#This Row],[Beregnet arbeid \n(i timer)]])/Prosjektsporing[[#This Row],[Beregnet arbeid \n(i timer)]])>FlagPercent,1,0)),\"\")","v":1},300,{"$f":"IFERROR(IF(Prosjektsporing[Faktisk varighet \n(i dager)]=0,\"\",IF(ABS((Prosjektsporing[[#This Row],[Faktisk varighet \n(i dager)]]-Prosjektsporing[[#This Row],[Beregnet varighet \n(i dager)]])/Prosjektsporing[[#This Row],[Beregnet varighet \n(i dager)]])>FlagPercent,1,0)),\"\")","v":0},{"$f":"IF(COUNTA(Prosjektsporing!$I5,Prosjektsporing!$J5)<>2,\"\",DAYS360(Prosjektsporing!$I5,Prosjektsporing!$J5,FALSE))","v":64}]
[null,"Prosjekt 2","Kategori 2","Ansatt 4",{"$f":"TODAY()-41","v":"2016-09-09"},{"$f":"TODAY()-10","v":"2016-10-10"},400,{"$f":"IF(COUNTA(Prosjektsporing!$E6,Prosjektsporing!$F6)<>2,\"\",DAYS360(Prosjektsporing!$E6,Prosjektsporing!$F6,FALSE))","v":31},{"$f":"TODAY()-41","v":"2016-09-09"},{"$f":"TODAY()-7","v":"2016-10-13"},{"$f":"IFERROR(IF(Prosjektsporing[Faktisk arbeid \n(i timer)]=0,\"\",IF(ABS((Prosjektsporing[[#This Row],[Faktisk arbeid \n(i timer)]]-Prosjektsporing[[#This Row],[Beregnet arbeid \n(i timer)]])/Prosjektsporing[[#This Row],[Beregnet arbeid \n(i timer)]])>FlagPercent,1,0)),\"\")","v":0},390,{"$f":"IFERROR(IF(Prosjektsporing[Faktisk varighet \n(i dager)]=0,\"\",IF(ABS((Prosjektsporing[[#This Row],[Faktisk varighet \n(i dager)]]-Prosjektsporing[[#This Row],[Beregnet varighet \n(i dager)]])/Prosjektsporing[[#This Row],[Beregnet varighet \n(i dager)]])>FlagPercent,1,0)),\"\")","v":0},{"$f":"IF(COUNTA(Prosjektsporing!$I6,Prosjektsporing!$J6)<>2,\"\",DAYS360(Prosjektsporing!$I6,Prosjektsporing!$J6,FALSE))","v":34}]
[null,"Prosjekt 3","Kategori 1","Ansatt 2",{"$f":"TODAY()-100","v":"2016-07-12"},{"$f":"TODAY()-40","v":"2016-09-10"},500,{"$f":"IF(COUNTA(Prosjektsporing!$E7,Prosjektsporing!$F7)<>2,\"\",DAYS360(Prosjektsporing!$E7,Prosjektsporing!$F7,FALSE))","v":58},{"$f":"TODAY()-100","v":"2016-07-12"},{"$f":"TODAY()-27","v":"2016-09-23"},{"$f":"IFERROR(IF(Prosjektsporing[Faktisk arbeid \n(i timer)]=0,\"\",IF(ABS((Prosjektsporing[[#This Row],[Faktisk arbeid \n(i timer)]]-Prosjektsporing[[#This Row],[Beregnet arbeid \n(i timer)]])/Prosjektsporing[[#This Row],[Beregnet arbeid \n(i timer)]])>FlagPercent,1,0)),\"\")","v":0},500,{"$f":"IFERROR(IF(Prosjektsporing[Faktisk varighet \n(i dager)]=0,\"\",IF(ABS((Prosjektsporing[[#This Row],[Faktisk varighet \n(i dager)]]-Prosjektsporing[[#This Row],[Beregnet varighet \n(i dager)]])/Prosjektsporing[[#This Row],[Beregnet varighet \n(i dager)]])>FlagPercent,1,0)),\"\")","v":0},{"$f":"IF(COUNTA(Prosjektsporing!$I7,Prosjektsporing!$J7)<>2,\"\",DAYS360(Prosjektsporing!$I7,Prosjektsporing!$J7,FALSE))","v":71}]
[null,"Prosjekt 4","Kategori 2","Ansatt 3",{"$f":"TODAY()-90","v":"2016-07-22"},{"$f":"TODAY()-80","v":"2016-08-01"},250,{"$f":"IF(COUNTA(Prosjektsporing!$E8,Prosjektsporing!$F8)<>2,\"\",DAYS360(Prosjektsporing!$E8,Prosjektsporing!$F8,FALSE))","v":9},{"$f":"TODAY()-90","v":"2016-07-22"},{"$f":"TODAY()-71","v":"2016-08-10"},{"$f":"IFERROR(IF(Prosjektsporing[Faktisk arbeid \n(i timer)]=0,\"\",IF(ABS((Prosjektsporing[[#This Row],[Faktisk arbeid \n(i timer)]]-Prosjektsporing[[#This Row],[Beregnet arbeid \n(i timer)]])/Prosjektsporing[[#This Row],[Beregnet arbeid \n(i timer)]])>FlagPercent,1,0)),\"\")","v":0},276,{"$f":"IFERROR(IF(Prosjektsporing[Faktisk varighet \n(i dager)]=0,\"\",IF(ABS((Prosjektsporing[[#This Row],[Faktisk varighet \n(i dager)]]-Prosjektsporing[[#This Row],[Beregnet varighet \n(i dager)]])/Prosjektsporing[[#This Row],[Beregnet varighet \n(i dager)]])>FlagPercent,1,0)),\"\")","v":1},{"$f":"IF(COUNTA(Prosjektsporing!$I8,Prosjektsporing!$J8)<>2,\"\",DAYS360(Prosjektsporing!$I8,Prosjektsporing!$J8,FALSE))","v":18}]
[null,"Prosjekt 5","Kategori 3","Ansatt 2",{"$f":"TODAY()-90","v":"2016-07-22"},{"$f":"TODAY()-50","v":"2016-08-31"},300,{"$f":"IF(COUNTA(Prosjektsporing!$E9,Prosjektsporing!$F9)<>2,\"\",DAYS360(Prosjektsporing!$E9,Prosjektsporing!$F9,FALSE))","v":39},{"$f":"TODAY()-90","v":"2016-07-22"},{"$f":"TODAY()-44","v":"2016-09-06"},{"$f":"IFERROR(IF(Prosjektsporing[Faktisk arbeid \n(i timer)]=0,\"\",IF(ABS((Prosjektsporing[[#This Row],[Faktisk arbeid \n(i timer)]]-Prosjektsporing[[#This Row],[Beregnet arbeid \n(i timer)]])/Prosjektsporing[[#This Row],[Beregnet arbeid \n(i timer)]])>FlagPercent,1,0)),\"\")","v":0},310,{"$f":"IFERROR(IF(Prosjektsporing[Faktisk varighet \n(i dager)]=0,\"\",IF(ABS((Prosjektsporing[[#This Row],[Faktisk varighet \n(i dager)]]-Prosjektsporing[[#This Row],[Beregnet varighet \n(i dager)]])/Prosjektsporing[[#This Row],[Beregnet varighet \n(i dager)]])>FlagPercent,1,0)),\"\")","v":0},{"$f":"IF(COUNTA(Prosjektsporing!$I9,Prosjektsporing!$J9)<>2,\"\",DAYS360(Prosjektsporing!$I9,Prosjektsporing!$J9,FALSE))","v":44}]
[null,"Prosjekt 6","Kategori 4","Ansatt 4",{"$f":"TODAY()-60","v":"2016-08-21"},{"$f":"TODAY()-50","v":"2016-08-31"},500,{"$f":"IF(COUNTA(Prosjektsporing!$E10,Prosjektsporing!$F10)<>2,\"\",DAYS360(Prosjektsporing!$E10,Prosjektsporing!$F10,FALSE))","v":10},{"$f":"TODAY()-60","v":"2016-08-21"},{"$f":"TODAY()-45","v":"2016-09-05"},{"$f":"IFERROR(IF(Prosjektsporing[Faktisk arbeid \n(i timer)]=0,\"\",IF(ABS((Prosjektsporing[[#This Row],[Faktisk arbeid \n(i timer)]]-Prosjektsporing[[#This Row],[Beregnet arbeid \n(i timer)]])/Prosjektsporing[[#This Row],[Beregnet arbeid \n(i timer)]])>FlagPercent,1,0)),\"\")","v":0},510,{"$f":"IFERROR(IF(Prosjektsporing[Faktisk varighet \n(i dager)]=0,\"\",IF(ABS((Prosjektsporing[[#This Row],[Faktisk varighet \n(i dager)]]-Prosjektsporing[[#This Row],[Beregnet varighet \n(i dager)]])/Prosjektsporing[[#This Row],[Beregnet varighet \n(i dager)]])>FlagPercent,1,0)),\"\")","v":1},{"$f":"IF(COUNTA(Prosjektsporing!$I10,Prosjektsporing!$J10)<>2,\"\",DAYS360(Prosjektsporing!$I10,Prosjektsporing!$J10,FALSE))","v":14}]
[null,"Prosjekt 7","Kategori 5","Ansatt 1",{"$f":"TODAY()-44","v":"2016-09-06"},{"$f":"TODAY()-20","v":"2016-09-30"},750,{"$f":"IF(COUNTA(Prosjektsporing!$E11,Prosjektsporing!$F11)<>2,\"\",DAYS360(Prosjektsporing!$E11,Prosjektsporing!$F11,FALSE))","v":24},{"$f":"TODAY()-44","v":"2016-09-06"},{"$f":"TODAY()-15","v":"2016-10-05"},{"$f":"IFERROR(IF(Prosjektsporing[Faktisk arbeid \n(i timer)]=0,\"\",IF(ABS((Prosjektsporing[[#This Row],[Faktisk arbeid \n(i timer)]]-Prosjektsporing[[#This Row],[Beregnet arbeid \n(i timer)]])/Prosjektsporing[[#This Row],[Beregnet arbeid \n(i timer)]])>FlagPercent,1,0)),\"\")","v":0},790,{"$f":"IFERROR(IF(Prosjektsporing[Faktisk varighet \n(i dager)]=0,\"\",IF(ABS((Prosjektsporing[[#This Row],[Faktisk varighet \n(i dager)]]-Prosjektsporing[[#This Row],[Beregnet varighet \n(i dager)]])/Prosjektsporing[[#This Row],[Beregnet varighet \n(i dager)]])>FlagPercent,1,0)),\"\")","v":0},{"$f":"IF(COUNTA(Prosjektsporing!$I11,Prosjektsporing!$J11)<>2,\"\",DAYS360(Prosjektsporing!$I11,Prosjektsporing!$J11,FALSE))","v":29}]
[null,"Prosjekt 8","Kategori 2","Ansatt 1",{"$f":"TODAY()-39","v":"2016-09-11"},{"$f":"TODAY()","v":"2016-10-20"},450,{"$f":"IF(COUNTA(Prosjektsporing!$E12,Prosjektsporing!$F12)<>2,\"\",DAYS360(Prosjektsporing!$E12,Prosjektsporing!$F12,FALSE))","v":39},{"$f":"TODAY()-45","v":"2016-09-05"},{"$f":"TODAY()-5","v":"2016-10-15"},{"$f":"IFERROR(IF(Prosjektsporing[Faktisk arbeid \n(i timer)]=0,\"\",IF(ABS((Prosjektsporing[[#This Row],[Faktisk arbeid \n(i timer)]]-Prosjektsporing[[#This Row],[Beregnet arbeid \n(i timer)]])/Prosjektsporing[[#This Row],[Beregnet arbeid \n(i timer)]])>FlagPercent,1,0)),\"\")","v":0},430,{"$f":"IFERROR(IF(Prosjektsporing[Faktisk varighet \n(i dager)]=0,\"\",IF(ABS((Prosjektsporing[[#This Row],[Faktisk varighet \n(i dager)]]-Prosjektsporing[[#This Row],[Beregnet varighet \n(i dager)]])/Prosjektsporing[[#This Row],[Beregnet varighet \n(i dager)]])>FlagPercent,1,0)),\"\")","v":0},{"$f":"IF(COUNTA(Prosjektsporing!$I12,Prosjektsporing!$J12)<>2,\"\",DAYS360(Prosjektsporing!$I12,Prosjektsporing!$J12,FALSE))","v":40}]
[null,"prosjekt 9","Kategori 4","Ansatt 1","2016-02-05","2016-06-09",250,{"$f":"IF(COUNTA(Prosjektsporing!$E13,Prosjektsporing!$F13)<>2,\"\",DAYS360(Prosjektsporing!$E13,Prosjektsporing!$F13,FALSE))","v":124},"2016-03-05","2016-05-05",{"$f":"IFERROR(IF(Prosjektsporing[Faktisk arbeid \n(i timer)]=0,\"\",IF(ABS((Prosjektsporing[[#This Row],[Faktisk arbeid \n(i timer)]]-Prosjektsporing[[#This Row],[Beregnet arbeid \n(i timer)]])/Prosjektsporing[[#This Row],[Beregnet arbeid \n(i timer)]])>FlagPercent,1,0)),\"\")","v":0},200,{"$f":"IFERROR(IF(Prosjektsporing[Faktisk varighet \n(i dager)]=0,\"\",IF(ABS((Prosjektsporing[[#This Row],[Faktisk varighet \n(i dager)]]-Prosjektsporing[[#This Row],[Beregnet varighet \n(i dager)]])/Prosjektsporing[[#This Row],[Beregnet varighet \n(i dager)]])>FlagPercent,1,0)),\"\")","v":1},{"$f":"IF(COUNTA(Prosjektsporing!$I13,Prosjektsporing!$J13)<>2,\"\",DAYS360(Prosjektsporing!$I13,Prosjektsporing!$J13,FALSE))","v":60}]

{"sheet":"Installasjon","index":1,"n_rows":10,"n_cols":3,"rows_kept":10}
[null,"Oppsett"]
[]
[]
[null,"Kategorinavn","Navn på ansatt"]
[null,"Kategori 1","Ansatt 1"]
[null,"Kategori 2","Ansatt 2"]
[null,"Kategori 3","Ansatt 3"]
[null,"Kategori 4","Ansatt 4"]
[null,"Kategori 5","Ansatt 5"]
[null,"Kategori 6","Ansatt 6"]